[Event "Late-Titled-Tuesday-Blitz-April-16-2024"]
[Site "Chess.com"]
[Date "2024.04.16"]
[Round "11"]
[White "Nf3c5"]
[Black "dosto07"]
[Result "1-0"]
[WhiteElo "2648"]
[BlackElo "2509"]
[TimeControl "180+1"]
[EndTime "16:08:27 PDT"]
[Termination "Nf3c5 won by checkmate"]

1. e4 {[%clk 0:03:00.9]} 1... e5 {[%clk 0:02:59.9]} 2. Nf3 {[%clk 0:03:00]} 2...
Nc6 {[%clk 0:02:57.8]} 3. Nc3 {[%clk 0:03:00.6]} 3... Nf6 {[%clk 0:02:57.4]} 4.
h3 {[%clk 0:03:01.1]} 4... g6 {[%clk 0:02:54.7]} 5. d4 {[%clk 0:02:59.7]} 5...
exd4 {[%clk 0:02:54.4]} 6. Nxd4 {[%clk 0:03:00.4]} 6... Bg7 {[%clk 0:02:54.9]}
7. Nxc6 {[%clk 0:02:59.5]} 7... bxc6 {[%clk 0:02:54.3]} 8. Bd3 {[%clk
0:02:58.9]} 8... O-O {[%clk 0:02:52.5]} 9. O-O {[%clk 0:02:59.5]} 9... d6 {[%clk
0:02:51.2]} 10. f4 {[%clk 0:02:58.4]} 10... Rb8 {[%clk 0:02:46]} 11. Rb1 {[%clk
0:02:50.5]} 11... Nh5 {[%clk 0:02:32]} 12. Bd2 {[%clk 0:02:44.9]} 12... Bd4+
{[%clk 0:02:16.1]} 13. Kh2 {[%clk 0:02:42.7]} 13... Re8 {[%clk 0:01:58.4]} 14.
Qf3 {[%clk 0:02:31.1]} 14... Qh4 {[%clk 0:01:49.5]} 15. b3 {[%clk 0:02:18.6]}
15... Nf6 {[%clk 0:01:46]} 16. Be1 {[%clk 0:01:58.6]} 16... Qh6 {[%clk
0:01:36.3]} 17. Ne2 {[%clk 0:01:54.3]} 17... Bb6 {[%clk 0:01:32.8]} 18. f5
{[%clk 0:01:08.6]} 18... gxf5 {[%clk 0:01:14.6]} 19. exf5 {[%clk 0:01:01.5]}
19... Re3 {[%clk 0:01:06.6]} 20. Qf4 {[%clk 0:01:01.7]} 20... Qg7 {[%clk
0:00:42.4]} 21. Bh4 {[%clk 0:00:48]} 21... Bd7 {[%clk 0:00:36.1]} 22. Qg5 {[%clk
0:00:39]} 22... Ne8 {[%clk 0:00:23.4]} 23. f6 {[%clk 0:00:35.5]} 23... Qxg5
{[%clk 0:00:23.2]} 24. Bxg5 {[%clk 0:00:36.1]} 24... Re5 {[%clk 0:00:21.3]} 25.
h4 {[%clk 0:00:34.9]} 25... d5 {[%clk 0:00:19.2]} 26. Nf4 {[%clk 0:00:29.2]}
26... Nd6 {[%clk 0:00:15.4]} 27. Rbe1 {[%clk 0:00:29.4]} 27... Rbe8 {[%clk
0:00:14.9]} 28. Rxe5 {[%clk 0:00:27.6]} 28... Rxe5 {[%clk 0:00:15.4]} 29. Ne2
{[%clk 0:00:18]} 29... Bf5 {[%clk 0:00:14.9]} 30. Ng3 {[%clk 0:00:13.3]} 30...
Bxd3 {[%clk 0:00:14.3]} 31. cxd3 {[%clk 0:00:14.2]} 31... Be3 {[%clk 0:00:13.8]}
32. Bxe3 {[%clk 0:00:12.6]} 32... Rxe3 {[%clk 0:00:13.9]} 33. d4 {[%clk
0:00:13]} 33... Ne4 {[%clk 0:00:13.5]} 34. Nf5 {[%clk 0:00:12.9]} 34... Rd3
{[%clk 0:00:11.4]} 35. Ne7+ {[%clk 0:00:13.1]} 35... Kf8 {[%clk 0:00:11.1]} 36.
Nxc6 {[%clk 0:00:13.7]} 36... Ke8 {[%clk 0:00:10.1]} 37. Rf5 {[%clk 0:00:13.1]}
37... Kd7 {[%clk 0:00:09.7]} 38. Nb4 {[%clk 0:00:11.7]} 38... Rxd4 {[%clk
0:00:08.7]} 39. Nxd5 {[%clk 0:00:11.1]} 39... Ke6 {[%clk 0:00:08.5]} 40. Ne3
{[%clk 0:00:10.7]} 40... Rd3 {[%clk 0:00:08.6]} 41. Rf3 {[%clk 0:00:11.3]} 41...
Ke5 {[%clk 0:00:07]} 42. Ng4+ {[%clk 0:00:11.2]} 42... Kd4 {[%clk 0:00:07.1]}
43. Rxd3+ {[%clk 0:00:11.3]} 43... Kxd3 {[%clk 0:00:07.6]} 44. Kh3 {[%clk
0:00:09.9]} 44... h5 {[%clk 0:00:07.9]} 45. Ne5+ {[%clk 0:00:10.2]} 45... Kd4
{[%clk 0:00:07.6]} 46. Nxf7 {[%clk 0:00:11.1]} 46... Nxf6 {[%clk 0:00:07.7]} 47.
Ng5 {[%clk 0:00:11.6]} 47... Kc3 {[%clk 0:00:07.8]} 48. Ne6 {[%clk 0:00:11.8]}
48... c6 {[%clk 0:00:06.9]} 49. Nd8 {[%clk 0:00:12]} 49... c5 {[%clk 0:00:06.8]}
50. Ne6 {[%clk 0:00:12.2]} 50... c4 {[%clk 0:00:06.3]} 51. bxc4 {[%clk
0:00:12.4]} 51... Kxc4 {[%clk 0:00:06.8]} 52. Kg3 {[%clk 0:00:12.5]} 52... a5
{[%clk 0:00:07.1]} 53. Kf4 {[%clk 0:00:12.5]} 53... a4 {[%clk 0:00:07.3]} 54.
Kg5 {[%clk 0:00:12.8]} 54... Ne4+ {[%clk 0:00:07.2]} 55. Kxh5 {[%clk 0:00:12.6]}
55... Nc3 {[%clk 0:00:06.6]} 56. a3 {[%clk 0:00:12.1]} 56... Nb5 {[%clk
0:00:06.9]} 57. g4 {[%clk 0:00:11.1]} 57... Nxa3 {[%clk 0:00:07]} 58. g5 {[%clk
0:00:11.8]} 58... Nb5 {[%clk 0:00:06.9]} 59. g6 {[%clk 0:00:12.1]} 59... Nd6
{[%clk 0:00:07.1]} 60. g7 {[%clk 0:00:11.9]} 60... a3 {[%clk 0:00:05.2]} 61.
g8=Q {[%clk 0:00:11.7]} 61... a2 {[%clk 0:00:05.2]} 62. Nf4+ {[%clk 0:00:12.2]}
62... Kd4 {[%clk 0:00:04.9]} 63. Qd5+ {[%clk 0:00:11.5]} 63... Ke3 {[%clk
0:00:04.6]} 64. Qxa2 {[%clk 0:00:11.4]} 64... Kxf4 {[%clk 0:00:04.8]} 65. Qe6
{[%clk 0:00:12]} 65... Nf5 {[%clk 0:00:04.5]} 66. Kg6 {[%clk 0:00:11.1]} 66...
Nxh4+ {[%clk 0:00:04.4]} 67. Kf6 {[%clk 0:00:11.1]} 67... Nf3 {[%clk 0:00:04.8]}
68. Qc4+ {[%clk 0:00:10]} 68... Ke3 {[%clk 0:00:04.9]} 69. Kf5 {[%clk
0:00:09.8]} 69... Nd4+ {[%clk 0:00:04.7]} 70. Kg4 {[%clk 0:00:09.3]} 70... Ne2
{[%clk 0:00:04.7]} 71. Qb3+ {[%clk 0:00:08.4]} 71... Kd2 {[%clk 0:00:04.7]} 72.
Qb2+ {[%clk 0:00:06.8]} 72... Ke3 {[%clk 0:00:04.6]} 73. Kf5 {[%clk 0:00:07.2]}
73... Nd4+ {[%clk 0:00:04.5]} 74. Kg5 {[%clk 0:00:06.5]} 74... Nf3+ {[%clk
0:00:04.8]} 75. Kf6 {[%clk 0:00:06]} 75... Nd4 {[%clk 0:00:05.7]} 76. Qc3+
{[%clk 0:00:05.1]} 76... Ke4 {[%clk 0:00:05]} 77. Qc4 {[%clk 0:00:06]} 77... Ke3
{[%clk 0:00:05.1]} 78. Ke5 {[%clk 0:00:06.2]} 78... Nf3+ {[%clk 0:00:05.5]} 79.
Kd5 {[%clk 0:00:06.9]} 79... Nd2 {[%clk 0:00:05.6]} 80. Qc3+ {[%clk 0:00:06]}
80... Ke2 {[%clk 0:00:06]} 81. Qc2 {[%clk 0:00:06.4]} 81... Ke3 {[%clk 0:00:06]}
82. Ke5 {[%clk 0:00:06.2]} 82... Nf3+ {[%clk 0:00:05.2]} 83. Kd5 {[%clk
0:00:05.8]} 83... Kf4 {[%clk 0:00:05.7]} 84. Qe4+ {[%clk 0:00:05]} 84... Kg3
{[%clk 0:00:06.1]} 85. Qe8 {[%clk 0:00:05]} 85... Kf2 {[%clk 0:00:05.9]} 86. Ke4
{[%clk 0:00:04.9]} 86... Nd2+ {[%clk 0:00:06.2]} 87. Kd3 {[%clk 0:00:05.2]}
87... Nf3 {[%clk 0:00:06.3]} 88. Qf7 {[%clk 0:00:05.8]} 88... Kg3 {[%clk
0:00:06.5]} 89. Ke3 {[%clk 0:00:06.4]} 89... Ng5 {[%clk 0:00:06.4]} 90. Qg6
{[%clk 0:00:06.8]} 90... Kg4 {[%clk 0:00:06.6]} 91. Qg7 {[%clk 0:00:06.8]} 91...
Kf5 {[%clk 0:00:06.8]} 92. Kd3 {[%clk 0:00:06.8]} 92... Kf4 {[%clk 0:00:06.7]}
93. Qg6 {[%clk 0:00:06.8]} 93... Kg4 {[%clk 0:00:06.9]} 94. Kd4 {[%clk
0:00:05.7]} 94... Kf4 {[%clk 0:00:07.2]} 95. Kd5 {[%clk 0:00:05.6]} 95... Nf3
{[%clk 0:00:07.1]} 96. Qe4+ {[%clk 0:00:05.1]} 96... Kg3 {[%clk 0:00:07.1]} 97.
Qh7 {[%clk 0:00:04.8]} 97... Kf4 {[%clk 0:00:07]} 98. Qf7+ {[%clk 0:00:04.3]}
98... Ke3 {[%clk 0:00:07.2]} 99. Qf5 {[%clk 0:00:04.3]} 99... Nd2 {[%clk
0:00:05.6]} 100. Qg5+ {[%clk 0:00:03.7]} 100... Kd3 {[%clk 0:00:05.8]} 101. Qg3+
{[%clk 0:00:03.4]} 101... Kc2 {[%clk 0:00:05.7]} 102. Kd4 {[%clk 0:00:03.8]}
102... Nb3+ {[%clk 0:00:05.8]} 103. Ke4 {[%clk 0:00:03.8]} 103... Nd2+ {[%clk
0:00:06]} 104. Kd5 {[%clk 0:00:03.4]} 104... Nb3 {[%clk 0:00:05.9]} 105. Kc4
{[%clk 0:00:03.4]} 105... Nd2+ {[%clk 0:00:06.1]} 106. Kb4 {[%clk 0:00:04.3]}
106... Kd1 {[%clk 0:00:05.3]} 107. Qe3 {[%clk 0:00:04.1]} 107... Kc2 {[%clk
0:00:04.5]} 108. Qd4 {[%clk 0:00:04.2]} 108... Kd1 {[%clk 0:00:02.9]} 109. Kc3
{[%clk 0:00:04.1]} 109... Ke1 {[%clk 0:00:01.3]} 110. Qxd2+ {[%clk 0:00:04.4]}
110... Kf1 {[%clk 0:00:01.9]} 111. Kd3 {[%clk 0:00:05.1]} 111... Kg1 {[%clk
0:00:02.1]} 112. Ke3 {[%clk 0:00:06]} 112... Kh1 {[%clk 0:00:02.3]} 113. Kf3
{[%clk 0:00:06.9]} 113... Kg1 {[%clk 0:00:02.5]} 114. Qg2# {[%clk 0:00:06.8]}
1-0